bitfinex-derivatives/quotes_SOLF0:USTF0_20220104
["timestamp","ask_amount","ask_price","bid_price","bid_amount"]
[1641287590242,2.59292966,168.56,168.5,12.54933352]
[1641287590442,7.30092966,168.56,168.5,12.54933352]
[1641287590944,19.85537408,168.56,168.48,14.13923929]
[1641287591142,62.8658,168.55,168.48,14.13923929]
[1641287591842,2.59292966,168.54,168.48,14.13923929]
[1641287592742,2.59292966,168.54,168.48,1.58990577]
[1641287592942,9.19892966,168.54,168.48,1.58990577]
[1641287593542,9.19892966,168.54,168.47,12.54933352]
[1641287593543,27.66479,168.52,168.47,1.58990577]
[1641287594343,27.66479,168.52,168.47,21.17126179]
[1641287595143,27.66479,168.52,168.47,5.75801363]
[1641287598349,4.16810786,168.53,168.47,5.75801363]
[1641287598950,4.16810786,168.52,168.47,5.75801363]
[1641287599550,27.66479,168.53,168.47,5.75801363]
[1641287599753,40.21923442,168.53,168.5,4.16810786]
[1641287600551,27.66479,168.53,168.5,4.16810786]
[1641287600752,27.66479,168.53,168.52,4.16810786]
[1641287600952,62.8658,168.55,168.52,4.16810786]
[1641287601152,12.55848277,168.56,168.52,4.16810786]
[1641287601554,27.66479,168.53,168.52,4.16810786]
[1641287601753,33.00979,168.53,168.49,12.54933352]
[1641287602556,2.59585839,168.52,168.47,12.54933352]
[1641287603756,27.66479,168.53,168.47,12.54933352]
[1641287603958,27.66479,168.53,168.47,18.26133352]
[1641287604759,27.66479,168.53,168.48,14.13923929]
[1641287605658,2.59617595,168.52,168.48,4.343]
[1641287606458,27.66479,168.53,168.48,4.343]
[1641287606659,27.66479,168.53,168.49,1.58990577]
[1641287607160,12.55896171,168.55,168.49,1.58990577]
[1641287607360,2.59612341,168.52,168.46,1.58990577]
[1641287608161,2.59612341,168.52,168.46,4.58990577]
[1641287608661,12.55959138,168.54,168.49,3.0]
[1641287608863,12.55959138,168.54,168.49,8.806]
[1641287609065,12.55959138,168.54,168.5,3.0]
[1641287610263,12.55959138,168.54,168.49,36.47079]
[1641287610466,2.59580342,168.55,168.5,14.13923929]
[1641287611265,15.1509077,168.58,168.5,21.1713095]
[1641287613571,12.55615774,168.57,168.5,21.1713095]
[1641287613765,73.68015774,168.57,168.5,21.1713095]
[1641287614166,61.124,168.57,168.5,21.1713095]
[1641287614366,2.59474996,168.56,168.5,24.1713095]
[1641287615868,61.124,168.57,168.5,24.1713095]
[1641287616070,4.18524853,168.56,168.52,12.54933352]
[1641287616669,27.66479,168.59,168.52,12.54933352]
[1641287616871,4.18502488,168.57,168.53,12.54933352]
[1641287617471,27.66479,168.59,168.56,4.18503504]
[1641287618273,2.59433218,168.58,168.56,4.18503504]
[1641287618872,64.7406,168.6,168.56,4.18503504]
[1641287619572,2.59422284,168.59,168.57,4.18503504]
[1641287620175,64.7406,168.6,168.57,4.18503504]
[1641287620373,12.55483995,168.61,168.57,4.18503504]
[1641287620775,27.66479,168.59,168.57,4.18503504]
[1641287620974,32.09179,168.59,168.57,4.18503504]
[1641287621274,32.09179,168.59,168.53,12.54933352]
[1641287621474,32.09179,168.59,168.56,4.18505676]
[1641287622077,32.09179,168.59,168.53,12.54933352]
[1641287622279,2.59435497,168.58,168.51,14.13923929]
[1641287623778,15.15023968,168.58,168.51,1.58990577]
[1641287624278,12.55588471,168.57,168.51,1.58990577]
[1641287624978,2.59435497,168.58,168.51,1.58990577]
[1641287625379,27.66479,168.57,168.51,1.58990577]
[1641287625777,2.59435497,168.58,168.51,1.58990577]
[1641287626179,12.55613992,168.57,168.51,1.58990577]
[1641287627185,12.5559403,168.58,168.51,1.58990577]
[1641287627587,12.5559403,168.58,168.51,4.58990577]
[1641287628689,12.5559403,168.58,168.52,3.0]
[1641287628889,2.59435497,168.59,168.52,3.0]
[1641287629087,15.14913337,168.59,168.52,1.58990577]
[1641287630193,15.14913337,168.59,168.52,7.57190577]
[1641287630691,2.59435497,168.59,168.52,18.53133352]
[1641287631489,12.5560026,168.58,168.53,1.58990577]
[1641287632089,9.80973174,168.59,168.53,1.58990577]
[1641287632490,9.80973174,168.59,168.52,1.58990577]
[1641287632690,12.44219142,168.59,168.52,1.58990577]
[1641287633591,12.55632692,168.58,168.5,14.13923929]
[1641287633792,12.55632692,168.58,168.5,17.13923929]
[1641287634190,12.55632692,168.58,168.5,14.13923929]
[1641287635092,12.44219142,168.59,168.5,14.13923929]
[1641287635492,12.44219142,168.59,168.5,17.13923929]
[1641287635695,12.44219142,168.59,168.5,14.13923929]
[1641287635894,12.55633485,168.58,168.5,14.13923929]
[1641287637996,12.55633485,168.57,168.5,1.58990577]
[1641287639201,12.55633485,168.57,168.5,4.58990577]
[1641287639500,12.55633485,168.57,168.5,1.58990577]
[1641287639700,12.55633485,168.57,168.52,27.66479]
[1641287639901,15.18879453,168.59,168.51,14.13923929]
[1641287640902,27.66479,168.6,168.54,3.0]
[1641287641102,62.001,168.62,168.54,3.0]
[1641287641303,62.001,168.62,168.54,6.399]
[1641287641703,62.001,168.62,168.55,1.58990577]
[1641287641704,12.5543857,168.6,168.55,1.58990577]
[1641287642405,15.18605479,168.61,168.55,1.58990577]
[1641287643005,15.18605479,168.61,168.57,3.0]
[1641287643207,33.11054813,168.65,168.57,3.0]
[1641287643607,33.11054813,168.65,168.58,3.0]
[1641287643808,33.11054813,168.65,168.59,27.66479]
[1641287644011,33.11054813,168.65,168.59,30.66479]
[1641287644410,33.11054813,168.65,168.59,27.66479]
[1641287644610,12.55127703,168.64,168.59,30.66479]
[1641287645212,12.55127703,168.64,168.6,3.0]
[1641287645610,12.55127703,168.64,168.59,30.66479]
[1641287646010,60.77533813,168.68,168.59,30.66479]
[1641287646615,60.77533813,168.68,168.6,1.58990577]
[1641287646616,15.18040008,168.67,168.6,1.58990577]
[1641287647412,15.18040008,168.67,168.6,21.07054832]
[1641287648213,27.66479,168.68,168.6,21.07054832]
[1641287648812,15.17913655,168.67,168.6,21.07054832]
[1641287649415,27.66479,168.68,168.6,1.58990577]
[1641287650515,2.63015789,168.67,168.6,1.58990577]
[1641287650716,15.55060771,168.66,168.6,1.58990577]
[1641287650914,12.55060771,168.66,168.6,1.58990577]
[1641287651720,27.66479,168.65,168.6,1.58990577]
[1641287652320,12.55060771,168.64,168.6,1.58990577]
[1641287652520,12.55060771,168.64,168.56,14.13923929]
[1641287652720,74.06850771,168.64,168.56,14.13923929]
[1641287653126,2.63015789,168.63,168.57,3.0]
[1641287653322,2.63015789,168.63,168.58,3.0]
[1641287653521,2.63015789,168.63,168.57,3.0]
[1641287653722,2.63015789,168.63,168.56,24.07066236]
[1641287653921,74.06850771,168.64,168.59,1.58990577]
[1641287654123,12.55060771,168.64,168.59,1.58990577]
[1641287654621,27.66479,168.65,168.59,1.58990577]
[1641287654822,2.63030204,168.64,168.58,1.58990577]
[1641287655523,15.17859109,168.64,168.58,1.58990577]
[1641287655721,15.17859109,168.64,168.58,29.25469577]
[1641287656222,15.17859109,168.64,168.59,1.58990577]
[1641287658126,2.63030204,168.64,168.59,1.58990577]
[1641287658726,12.42784625,168.66,168.58,1.58990577]
[1641287659327,12.5475742,168.65,168.58,1.58990577]
[1641287659728,12.5475742,168.65,168.58,29.25469577]
[1641287659929,87.77509,168.67,168.58,27.66479]
[1641287660129,87.77509,168.67,168.55,29.25469577]
[1641287660529,90.77509,168.67,168.55,29.25469577]
[1641287660930,90.77509,168.67,168.56,1.58990577]
[1641287661130,87.77509,168.67,168.56,1.58990577]
[1641287661730,12.46394134,168.64,168.56,21.0705397]
[1641287662434,12.43047052,168.66,168.56,21.0705397]
[1641287663135,12.54933068,168.64,168.56,21.0705397]
[1641287664940,12.43047052,168.66,168.56,21.0705397]
[1641287665437,15.43047052,168.66,168.56,21.0705397]
[1641287665640,12.54965667,168.63,168.56,21.0705397]
[1641287665838,40.21444667,168.63,168.56,21.0705397]
[1641287666338,2.62957391,168.62,168.56,21.0705397]
[1641287667140,40.2144909,168.63,168.56,21.0705397]
[1641287667842,27.66479,168.63,168.56,14.13923929]
[1641287668041,15.17954591,168.62,168.56,1.58990577]
[1641287668441,27.66479,168.63,168.56,1.58990577]
[1641287669243,15.17950229,168.62,168.56,1.58990577]
[1641287669441,81.46120229,168.62,168.56,1.58990577]
[1641287669842,2.62983132,168.61,168.56,1.58990577]
[1641287670742,72.0404901,168.62,168.56,1.58990577]
[1641287671445,2.62984569,168.61,168.56,1.58990577]
[1641287671944,72.0404901,168.62,168.56,1.58990577]
[1641287672144,72.0404901,168.62,168.56,7.67290577]
[1641287672345,27.66479,168.61,168.56,7.67290577]
[1641287672644,30.29461936,168.61,168.57,1.58990577]
[1641287673247,27.66479,168.61,168.57,1.58990577]
[1641287673446,27.66479,168.61,168.54,66.69189922]
[1641287673447,27.66479,168.61,168.56,5.606]
[1641287673647,59.4907,168.62,168.56,5.606]
[1641287674247,52.79749253,168.62,168.56,5.606]
[1641287674648,27.66479,168.61,168.56,5.606]
[1641287675049,30.28585659,168.61,168.54,66.69189922]
[1641287675649,27.66479,168.61,168.55,1.48870028]
[1641287676253,52.79749253,168.62,168.55,1.48870028]
[1641287676451,52.79749253,168.62,168.55,7.65670028]
[1641287676851,27.66479,168.61,168.55,7.65670028]
[1641287677552,27.66479,168.61,168.56,1.48870028]
[1641287678552,27.66479,168.61,168.55,1.48870028]
[1641287680556,30.66479,168.61,168.55,0.00010028]
[1641287680758,27.66479,168.56,168.46,5.92820938]
[1641287680958,31.95579,168.56,168.46,5.92820938]
[1641287681562,31.95579,168.56,168.44,106.09339954]
[1641287681759,34.95579,168.56,168.44,106.09339954]
[1641287681958,31.95579,168.56,168.44,106.09339954]
[1641287682762,31.95579,168.56,168.45,3.0]
[1641287682962,4.17077389,168.55,168.5,4.17077389]
[1641287683763,4.17077389,168.53,168.48,4.17077389]
[1641287684664,4.17077389,168.52,168.48,4.17077389]
[1641287685464,4.17077389,168.53,168.49,4.17077389]
[1641287686265,4.17077389,168.52,168.48,4.33]
[1641287687267,4.17077389,168.52,168.48,8.50077389]
[1641287688066,4.17077389,168.51,168.48,4.33]
[1641287689567,4.17077389,168.5,168.48,4.33]
[1641287690369,10.27290972,168.55,168.48,8.50077389]
[1641287691867,43.38345785,168.55,168.48,8.50077389]
[1641287692469,43.38345785,168.55,168.48,4.33]
[1641287692671,43.38345785,168.55,168.47,4.17077389]
[1641287692970,27.66479,168.53,168.48,4.595]
[1641287694274,10.27290972,168.52,168.48,4.595]
[1641287694471,10.27290972,168.52,168.46,4.17077389]
[1641287696076,13.27290972,168.52,168.46,4.17077389]
[1641287696477,10.27290972,168.52,168.46,4.17077389]
[1641287697277,13.27290972,168.52,168.46,4.17077389]
[1641287697678,13.27290972,168.52,168.47,4.17077389]
[1641287697877,10.27290972,168.52,168.47,4.17077389]
[1641287698977,27.66479,168.49,168.47,4.17077389]
[1641287699978,10.27290972,168.52,168.47,4.17077389]
[1641287700179,58.1767,168.53,168.47,4.17077389]
[1641287700783,10.31014908,168.52,168.47,4.17077389]
[1641287701382,61.1767,168.53,168.47,4.17077389]
[1641287701582,58.1767,168.53,168.47,4.17077389]
[1641287701785,58.1767,168.53,168.43,4.615]
[1641287701983,27.66479,168.49,168.43,4.615]
[1641287702286,58.1767,168.53,168.43,4.615]
[1641287702985,58.1767,168.53,168.42,8.92979127]
[1641287703185,10.31030164,168.52,168.47,4.17077389]
[1641287703986,27.66479,168.5,168.47,4.17077389]
[1641287705190,58.1767,168.53,168.47,4.17077389]
[1641287705393,58.1767,168.53,168.46,4.17077389]
[1641287705790,91.28724813,168.53,168.46,4.17077389]
[1641287706190,27.66479,168.5,168.46,4.17077389]
[1641287709399,91.28724813,168.53,168.46,4.17077389]
[1641287710098,10.30939782,168.52,168.46,4.17077389]
[1641287710499,27.66479,168.5,168.46,4.17077389]
[1641287711001,37.97418782,168.52,168.46,4.17077389]
[1641287711803,27.66479,168.52,168.46,4.17077389]
[1641287712003,12.55806702,168.49,168.46,4.17077389]
[1641287712601,12.55806702,168.49,168.48,4.17077389]
[1641287712801,12.55806702,168.51,168.48,4.17077389]
[1641287714606,12.55806702,168.51,168.47,4.17077389]
[1641287715605,12.55806702,168.51,168.48,4.17077389]
[1641287716206,12.55806702,168.51,168.47,4.17077389]
[1641287716905,27.66479,168.5,168.47,4.17077389]
[1641287720613,40.22285702,168.5,168.46,4.17077389]
[1641287721317,12.55806702,168.5,168.46,4.17077389]
[1641287721514,2.81969809,168.49,168.46,4.17077389]
[1641287722014,30.48448809,168.49,168.46,4.17077389]
[1641287722416,12.55806702,168.5,168.46,4.17077389]
[1641287723214,12.55806702,168.49,168.45,4.17077389]
[1641287724014,40.22285702,168.49,168.45,4.17077389]
[1641287724214,12.55806702,168.49,168.45,4.17077389]
[1641287725116,15.37776511,168.51,168.47,4.17077389]
[1641287725714,12.55806702,168.49,168.45,4.17077389]
[1641287726415,12.55806702,168.5,168.46,4.17077389]
[1641287727117,12.55806702,168.5,168.47,4.17077389]
[1641287727316,12.55806702,168.5,168.47,9.72177389]
[1641287727919,2.81969809,168.51,168.48,5.53723181]
[1641287730223,2.81969809,168.51,168.48,4.17077389]
[1641287731322,15.37776511,168.51,168.47,4.17077389]
[1641287732122,15.37776511,168.51,168.48,4.17077389]
[1641287732321,27.66479,168.5,168.48,4.17077389]
[1641287733322,2.81969809,168.49,168.47,4.17077389]
[1641287735224,27.66479,168.5,168.46,1.36645792]
[1641287735225,40.22558575,168.5,168.46,5.53723181]
[1641287735926,2.82061771,168.49,168.46,5.53723181]
[1641287736729,40.22558575,168.5,168.46,4.17077389]
[1641287737129,12.56079575,168.5,168.46,4.17077389]
[1641287737530,2.82061267,168.49,168.46,4.17077389]
[1641287738031,15.38139885,168.5,168.46,4.17077389]
[1641287741532,12.56079575,168.5,168.46,4.17077389]
[1641287742638,12.56079575,168.5,168.48,3.0]
[1641287742834,2.54937672,168.5,168.48,30.66479]
[1641287743037,2.8206031,168.52,168.49,4.17077389]
[1641287743237,2.8206031,168.52,168.49,5.53723181]
[1641287744136,33.11054813,168.57,168.49,1.36645792]
[1641287744538,12.7989825,168.57,168.49,1.36645792]
[1641287745240,2.729535,168.57,168.49,1.36645792]
[1641287745438,2.729535,168.57,168.53,4.18571251]
[1641287745942,44.3921,168.58,168.53,4.18571251]
[1641287746639,2.72924217,168.57,168.53,4.18571251]
[1641287747242,6.94224217,168.57,168.53,4.18571251]
[1641287747440,6.94224217,168.57,168.49,8.04109293]
[1641287747642,9.94224217,168.57,168.49,8.04109293]
[1641287747840,3.0,168.56,168.49,8.04109293]
[1641287748042,5.72924217,168.56,168.49,1.36645792]
[1641287748241,3.0,168.55,168.49,1.36645792]
[1641287748642,3.0,168.54,168.49,1.36645792]
[1641287748843,30.66479,168.52,168.49,1.36645792]
[1641287749043,37.09679,168.52,168.49,1.36645792]
[1641287749244,37.09679,168.52,168.46,8.04120085]
[1641287749445,34.09679,168.52,168.46,8.04120085]
[1641287750247,2.72924217,168.51,168.45,8.04120085]
[1641287750846,2.72924217,168.51,168.45,1.36645792]
[1641287751847,27.66479,168.52,168.45,1.36645792]
[1641287753048,2.73051306,168.51,168.45,1.36645792]
[1641287755452,2.73051306,168.51,168.45,29.03124792]
[1641287755654,2.73051306,168.51,168.45,1.36645792]
[1641287758457,45.6896,168.54,168.45,7.94086006]
[1641287759256,30.43269822,168.53,168.45,7.94086006]
[1641287760057,2.76808387,168.52,168.45,7.94086006]
[1641287760658,45.6896,168.54,168.45,7.94086006]
[1641287761461,27.66479,168.53,168.45,7.94086006]
[1641287761659,40.6059087,168.53,168.45,7.94086006]
[1641287761861,12.9411187,168.53,168.45,7.94086006]
[1641287762261,2.76815068,168.53,168.45,1.36645792]
[1641287762861,2.76815068,168.53,168.45,7.9337016]
[1641287763061,7.14115068,168.53,168.45,7.9337016]
[1641287763561,27.66479,168.5,168.45,7.9337016]
[1641287763964,27.66479,168.5,168.45,1.36645792]
[1641287764764,2.76831259,168.49,168.45,1.36645792]
[1641287765769,27.66479,168.5,168.43,1.36645792]
[1641287766671,2.76828985,168.49,168.43,1.36645792]
[1641287767372,27.66479,168.53,168.44,3.0]
[1641287767771,27.66479,168.53,168.44,30.66479]
[1641287768172,12.94024243,168.52,168.45,1.36645792]
[1641287771777,12.94024243,168.52,168.44,3.0]
[1641287772378,12.94024243,168.52,168.43,7.94092551]
[1641287773278,2.76794315,168.52,168.46,12.56080104]
[1641287773781,45.6896,168.54,168.46,12.56080104]
[1641287773979,58.24986626,168.54,168.47,12.56080104]
[1641287774380,45.6896,168.54,168.47,12.56080104]
[1641287774579,2.76815289,168.53,168.46,20.50172655]
[1641287775682,58.25010401,168.54,168.46,20.50172655]
[1641287776081,2.76812791,168.53,168.46,20.50172655]
[1641287776282,30.43291791,168.53,168.46,20.50172655]
[1641287777386,2.76820817,168.52,168.46,20.50172655]
[1641287777986,45.6896,168.54,168.46,20.50172655]
[1641287778190,2.76805996,168.53,168.46,20.50172655]
[1641287778389,30.43284996,168.53,168.46,20.50172655]
[1641287779191,27.66479,168.53,168.47,12.56080104]
[1641287779892,2.76800155,168.52,168.47,12.56080104]
[1641287780491,40.22496184,168.53,168.46,1.36645792]
[1641287781194,15.32816577,168.52,168.46,1.36645792]
[1641287781791,27.66479,168.53,168.46,1.36645792]
[1641287782792,2.76391704,168.52,168.46,1.36645792]
[1641287783391,27.66479,168.53,168.46,1.36645792]
[1641287783592,58.23128192,168.54,168.46,1.36645792]
[1641287784193,2.76392511,168.52,168.46,1.36645792]
[1641287784994,2.76391545,168.53,168.46,1.36645792]
[1641287786495,15.30559737,168.53,168.46,1.36645792]
[1641287788401,73.35439,168.54,168.46,20.49201799]
[1641287788801,73.35439,168.54,168.46,24.49201799]
[1641287789001,2.7639366,168.53,168.47,3.0]
[1641287789201,2.7639366,168.53,168.46,20.49201799]
[1641287789901,2.7639366,168.53,168.46,23.49201799]
[1641287790102,2.7639366,168.53,168.46,20.49201799]
[1641287790307,45.6896,168.54,168.46,20.49201799]
[1641287790702,2.76379758,168.53,168.46,20.49201799]
[1641287791701,45.6896,168.54,168.46,20.49201799]
[1641287792302,2.76786121,168.53,168.46,20.49201799]
[1641287792503,2.76786121,168.53,168.47,12.56080104]
[1641287792909,45.6896,168.54,168.47,12.56080104]
[1641287793607,2.76787677,168.53,168.47,12.56080104]
[1641287794707,45.6896,168.54,168.47,12.56080104]
[1641287795206,15.30959649,168.53,168.46,1.36645792]
[1641287796007,45.6896,168.54,168.46,1.36645792]
[1641287796807,2.76787789,168.53,168.46,1.36645792]
[1641287797009,15.32774378,168.53,168.46,1.36645792]
[1641287797409,45.6896,168.54,168.46,1.36645792]
[1641287798213,15.32770678,168.53,168.46,1.36645792]
[1641287798812,2.76786732,168.53,168.46,1.36645792]
[1641287799014,45.6896,168.54,168.46,1.36645792]
[1641287799914,2.76787696,168.52,168.46,1.36645792]
[1641287800519,12.55986355,168.53,168.46,1.36645792]
[1641287800715,2.76770709,168.53,168.46,20.50163881]
[1641287801818,12.55939255,168.53,168.46,20.50163881]
[1641287802516,45.6896,168.54,168.46,20.50163881]
[1641287802816,2.7676973,168.53,168.46,23.50163881]
[1641287803017,58.2490144,168.54,168.46,23.50163881]
[1641287803716,58.2490144,168.54,168.46,20.50163881]
[1641287803916,2.76758841,168.53,168.47,1.36645792]
[1641287804917,45.6896,168.54,168.46,23.50163881]
[1641287805519,2.76760187,168.53,168.47,1.36645792]
[1641287806418,45.6896,168.54,168.46,20.50163881]
[1641287807121,45.6896,168.54,168.48,3.0]
[1641287807320,2.76759381,168.53,168.48,8.758]
[1641287807920,2.76759381,168.53,168.49,3.0]
[1641287808121,73.60119,168.57,168.48,8.758]
[1641287808520,4.18579263,168.53,168.49,13.92725896]
[1641287808920,4.18579263,168.53,168.51,27.66479]
[1641287809221,4.17013844,168.55,168.51,27.66479]
[1641287809923,45.9364,168.57,168.51,27.66479]
[1641287810122,2.75652838,168.56,168.51,27.66479]
[1641287810825,50.10654275,168.57,168.51,31.83492844]
[1641287811423,45.9364,168.57,168.51,31.83492844]
[1641287811624,45.9364,168.57,168.52,5.58375488]
[1641287811823,40.22216789,168.6,168.52,5.58375488]
[1641287812424,4.16979915,168.58,168.53,4.17013844]
[1641287813224,46.5286,168.61,168.53,4.17013844]
[1641287813427,2.76619027,168.59,168.57,4.17013844]
[1641287814232,12.55737789,168.6,168.57,4.17013844]
[1641287814233,2.76619027,168.6,168.57,4.17013844]
[1641287818038,12.55737789,168.59,168.55,5.58375488]
[1641287821239,12.93257195,168.6,168.58,7.0]
[1641287821442,12.93257195,168.6,168.58,11.546]
[1641287822740,12.93257195,168.66,168.59,1.41361644]
[1641287823140,12.93257195,168.66,168.59,29.07840644]
[1641287823944,2.76619027,168.65,168.62,4.18375312]
[1641287825144,2.76619027,168.64,168.62,4.18375312]
[1641287825844,2.76619027,168.63,168.62,4.18375312]
[1641287832454,33.11054813,168.7,168.62,17.10564339]
[1641287832655,33.11054813,168.7,168.67,3.0]
[1641287832853,33.11054813,168.71,168.67,5.284]
[1641287833054,15.11054813,168.71,168.67,5.284]
[1641287833657,15.11054813,168.71,168.68,27.66479]
[1641287833856,43.1368,168.74,168.68,27.66479]
[1641287834059,43.1368,168.74,168.69,4.18236253]
[1641287835260,3.0,168.73,168.69,4.18236253]
[1641287835660,12.35803552,168.73,168.67,4.18236253]
[1641287835866,9.35803552,168.73,168.67,4.18236253]
[1641287836362,9.35803552,168.73,168.68,4.18236253]
[1641287836564,9.35803552,168.73,168.68,9.79236253]
[1641287837161,46.1368,168.74,168.68,5.61]
[1641287837663,43.1368,168.74,168.68,5.61]
[1641287837863,43.1368,168.74,168.65,27.66479]
[1641287838265,46.1368,168.74,168.65,27.66479]
[1641287838662,46.1368,168.74,168.7,4.18236253]
[1641287838863,3.0,168.74,168.7,4.18236253]
[1641287839366,3.0,168.74,168.69,4.18236253]
[1641287839964,51.84430021,168.75,168.69,4.18236253]
[1641287840166,3.0,168.7,168.66,7.37280095]
[1641287840365,8.387,168.7,168.66,7.37280095]
[1641287840565,5.387,168.7,168.66,7.37280095]
[1641287840966,5.387,168.7,168.64,7.37280095]
[1641287841764,44.5308,168.71,168.64,7.37280095]
[1641287841966,27.66479,168.69,168.64,7.37280095]
[1641287843364,27.66479,168.69,168.62,5.92189027]
[1641287843766,44.5308,168.71,168.62,5.92189027]
[1641287844365,27.66479,168.7,168.62,5.92189027]
[1641287845368,30.66479,168.7,168.62,24.72668212]
[1641287846167,30.66479,168.7,168.62,13.29469122]
[1641287846467,27.66479,168.7,168.62,13.29469122]
[1641287848170,4.1836917,168.68,168.62,13.29469122]
[1641287850774,4.1836917,168.68,168.62,5.92189027]
[1641287850975,4.1836917,168.67,168.62,5.92189027]
[1641287851177,4.1836917,168.67,168.61,7.37280095]
[1641287851776,44.5308,168.71,168.63,12.55109642]
[1641287851777,4.1836917,168.68,168.63,12.55109642]
[1641287852377,4.1836917,168.68,168.64,12.55109642]
[1641287853579,31.8484817,168.7,168.65,12.55109642]
[1641287854178,4.1836917,168.69,168.65,12.55109642]
[1641287855487,8.9586917,168.69,168.65,12.55109642]
[1641287855685,11.9586917,168.69,168.65,12.55109642]
[1641287856586,7.775,168.69,168.67,4.18376985]
[1641287857290,3.0,168.68,168.67,4.18376985]
[1641287857889,27.66479,168.7,168.67,4.18376985]
[1641287858088,3.0,168.69,168.67,4.18376985]
[1641287858989,30.66479,168.7,168.67,4.18376985]
[1641287859792,27.66479,168.7,168.67,4.18376985]
[1641287859991,30.66479,168.7,168.67,4.18376985]
[1641287860594,3.0,168.68,168.67,4.18376985]
[1641287860796,30.66479,168.7,168.67,4.18376985]
[1641287860996,3.0,168.68,168.63,12.55109642]
[1641287861293,3.0,168.66,168.63,12.55109642]
[1641287861493,3.0,168.68,168.63,12.55109642]
[1641287861895,15.55109642,168.68,168.6,12.55109642]
[1641287862695,27.66479,168.66,168.6,12.55109642]
[1641287868199,27.66479,168.66,168.59,12.55109642]
[1641287869000,40.21588642,168.66,168.58,19.92389737]
[1641287870203,27.66479,168.66,168.59,12.55109642]
[1641287870505,30.66479,168.66,168.59,17.59409642]
[1641287871204,3.0,168.65,168.59,17.59409642]
[1641287871605,3.0,168.64,168.59,5.043]
[1641287871803,3.0,168.64,168.57,45.08109642]
[1641287872704,27.66479,168.63,168.57,45.08109642]
[1641287872904,27.66479,168.63,168.57,12.55109642]
[1641287873806,27.66479,168.63,168.58,21.50503834]
[1641287874007,20.96954683,168.63,168.58,17.18309642]
[1641287874607,2.56361186,168.62,168.59,1.68116107]
[1641287876107,2.56361186,168.65,168.59,1.68116107]
[1641287876908,2.56361186,168.65,168.59,14.23225749]
[1641287877410,2.56361186,168.65,168.59,1.68116107]
[1641287878609,2.56361186,168.65,168.6,12.55109642]
[1641287879609,2.56361186,168.65,168.59,14.23225749]
[1641287880415,2.56361186,168.66,168.59,21.50503834]
[1641287880611,2.56361186,168.66,168.6,12.55109642]
[1641287880811,30.22840186,168.66,168.6,12.55109642]
[1641287881311,30.22840186,168.66,168.6,14.23225749]
[1641287881712,2.56361186,168.66,168.6,14.23225749]
[1641287881912,2.56361186,168.65,168.6,14.23225749]
[1641287882413,2.56361186,168.66,168.61,12.55109642]
[1641287882815,2.56361186,168.66,168.61,40.21588642]
[1641287883815,2.56361186,168.68,168.63,12.55109642]
[1641287884014,2.56361186,168.68,168.63,19.25409642]
[1641287884314,2.56361186,168.68,168.64,1.68116107]
[1641287886113,15.11470828,168.68,168.63,1.68116107]
[1641287887013,45.50540828,168.68,168.63,1.68116107]
[1641287887213,45.50540828,168.68,168.62,1.68116107]
[1641287887813,2.56361186,168.67,168.62,1.68116107]
[1641287888919,2.56361186,168.67,168.61,12.55109642]
[1641287892719,40.21588642,168.69,168.61,12.55109642]
[1641287892918,27.66479,168.69,168.63,12.55109642]
[1641287894718,27.66479,168.69,168.64,12.55109642]
[1641287895519,27.66479,168.69,168.62,1.68116107]
[1641287899524,3.0,168.7,168.62,1.68116107]
[1641287899724,2.56220054,168.68,168.62,21.3443605]
[1641287899924,3.0,168.67,168.62,21.3443605]
[1641287900124,37.33640054,168.68,168.62,21.3443605]
[1641287900526,2.56220054,168.66,168.6,14.23225749]
[1641287901324,18.11329696,168.67,168.6,1.68116107]
[1641287902427,2.56220054,168.66,168.6,1.68116107]
[1641287903230,3.0,168.65,168.6,1.68116107]
[1641287903429,3.0,168.64,168.6,1.68116107]
[1641287903630,8.94020054,168.66,168.6,1.68116107]
[1641287903832,3.0,168.65,168.6,1.68116107]
[1641287904230,27.66479,168.64,168.6,1.68116107]
[1641287904632,2.56220054,168.64,168.59,1.68116107]
[1641287905231,5.56220054,168.67,168.57,1.68116107]
[1641287905832,2.56220054,168.66,168.56,5.92487262]
[1641287906131,33.22699054,168.66,168.56,5.92487262]
[1641287906731,3.0,168.65,168.56,5.92487262]
[1641287906933,34.3175,168.64,168.56,5.92487262]
[1641287907134,34.3175,168.64,168.57,1.61295984]
[1641287907532,31.3175,168.64,168.57,1.61295984]
[1641287907733,3.0,168.63,168.57,1.61295984]
[1641287907933,31.3175,168.64,168.57,1.61295984]
[1641287908732,31.3175,168.64,168.57,7.17895984]
[1641287910135,31.3175,168.64,168.58,1.61295984]
[1641287910336,27.66479,168.66,168.58,1.61295984]